fUST/lending_fUST_20250814
["ID","MTS","AMOUNT","RATE_DAILY","PERIOD"]
[379104773,1755142246485,-153.869002,0.0001844,2]
[379104775,1755142246495,-237.423141,0.0001844,2]
[379104777,1755142246504,-237.423141,0.0001844,2]
[379104779,1755142246514,-1106.205175,0.0001844,2]
[379104781,1755142246524,-1106.205175,0.0001844,2]
[379104783,1755142246534,-151.0,0.0001844,2]
[379104791,1755142246691,-500.0,0.0001844,2]
[379104794,1755142246700,-154.9377482,0.0001844,2]
[379104796,1755142246710,-501.0,0.00018441,2]
[379104798,1755142246719,-501.0,0.00018441,2]
[379104800,1755142246729,-501.0,0.00018441,2]
[379104802,1755142246738,-501.0,0.00018441,2]
[379104804,1755142246748,-501.0,0.00018441,2]
[379104806,1755142246758,-501.0,0.00018441,2]
[379104808,1755142246771,-503.61285737,0.00018441,2]
[379104810,1755142246781,-152.785363,0.00018441,2]
[379104812,1755142246794,-6242.66308815,0.00018441,2]
[379104814,1755142246804,-282.956015,0.00018441,2]
[379104816,1755142246814,-282.956015,0.00018441,2]
[379104818,1755142246823,-282.956015,0.00018441,2]
[379104820,1755142246832,-282.956015,0.00018441,2]
[379104822,1755142246842,-151.0,0.00018441,2]
[379104824,1755142246852,-151.0,0.00018441,2]
[379104826,1755142246862,-151.0,0.00018441,2]
[379104828,1755142246872,-151.0,0.00018441,2]
[379104830,1755142246881,-151.0,0.00018441,2]
[379104832,1755142246890,-208.473001,0.00018441,2]
[379104834,1755142246899,-151.0,0.00018441,2]
[379104836,1755142246910,-237.423141,0.00018441,2]
[379104838,1755142246919,-237.423141,0.00018441,2]
[379104840,1755142246929,-1106.205175,0.00018441,2]
[379104843,1755142246939,-1106.205175,0.00018441,2]
[379104845,1755142246948,-251.365415,0.00018441,2]
[379104847,1755142246958,-251.365415,0.00018441,2]
[379104849,1755142246967,-189.79684,0.00018441,2]
[379104851,1755142246977,-189.79684,0.00018441,2]
[379104853,1755142246986,-493.413362,0.00018441,2]
[379104855,1755142246996,-493.413362,0.00018441,2]
[379104857,1755142247005,-156.828483,0.00018441,2]
[379104859,1755142247014,-261.10675,0.00018441,2]
[379104861,1755142247024,-387.435564,0.00018441,2]
[379104863,1755142247034,-387.435564,0.00018441,2]
[379104865,1755142247043,-153.575306,0.00018441,2]
[379104867,1755142247053,-153.575306,0.00018441,2]
[379104869,1755142247062,-233.831373,0.00018441,2]
[379104871,1755142247072,-233.831373,0.00018441,2]
[379104873,1755142247081,-439.33824322,0.00018442,2]
[379104875,1755142247091,-151.0,0.00018442,2]
[379104877,1755142247100,-152.875715,0.00018442,2]
[379104879,1755142247109,-151.0,0.00018442,2]
[379104881,1755142247120,-151.0,0.00018442,2]
[379104883,1755142247129,-151.0,0.00018442,2]
[379104885,1755142247139,-151.0,0.00018442,2]
[379104887,1755142247150,-271.898049,0.00018442,2]
[379104890,1755142247159,-291.021883,0.00018442,2]
[379104892,1755142247169,-291.021883,0.00018442,2]
[379104894,1755142247179,-151.859884,0.00018442,2]
[379104896,1755142247189,-151.0,0.00018442,2]
[379104898,1755142247200,-151.0,0.00018442,2]
[379104900,1755142247210,-151.0,0.00018442,2]
[379104902,1755142247223,-501.1108169,0.00018473,2]
[379104904,1755142247233,-501.77308875,0.00018473,2]
[379104906,1755142247242,-500.0,0.00018473,2]
[379104908,1755142247252,-500.0,0.00018473,2]
[379104910,1755142247262,-500.0,0.00018473,2]
[379104912,1755142247272,-616.87918414,0.00018473,2]
[379104914,1755142247281,-509.59193956,0.00018473,2]
[379104916,1755142247291,-500.0,0.00018473,2]
[379104918,1755142247300,-504.55150989,0.00018473,2]
[379104920,1755142247310,-500.0,0.00018473,2]
[379104922,1755142247320,-152.095819,0.00018473,2]
[379104924,1755142247329,-151.0,0.000185,2]
[379104926,1755142247339,-98617.5,0.000185,2]
[379104928,1755142247347,-168.74088254,0.00018513,2]
[379104930,1755142247357,-151.0,0.000186,2]
[379104932,1755142247366,-168.74088254,0.00018604,2]
[379104934,1755142247376,-151.0,0.000187,2]
[379104936,1755142247385,-151.0,0.000187,2]
[379104938,1755142247394,-460.0,0.00018702,2]
[379104940,1755142247403,-704.24,0.00018702,2]
[379104942,1755142247412,-985.93,0.00018702,2]
[379104944,1755142247421,-2867.24,0.00018702,2]
[379104946,1755142247430,-460.0,0.00018702,2]
[379104948,1755142247442,-460.0,0.00018703,2]
[379104951,1755142247450,-460.0,0.00018703,2]
[379104953,1755142247459,-460.0,0.00018703,2]
[379104955,1755142247467,-460.0,0.00018703,2]
[379104957,1755142247474,-460.0,0.00018703,2]
[379104959,1755142247482,-1118.37,0.00018703,2]
[379104961,1755142247490,-1643.65,0.00018703,2]
[379104963,1755142247499,-927.97,0.00018703,2]
[379104965,1755142247506,-460.0,0.00018703,2]
[379104967,1755142247514,-460.0,0.00018703,2]
[379104969,1755142247522,-460.0,0.00018703,2]
[379104971,1755142247530,-460.0,0.00018703,2]
[379104974,1755142247539,-460.0,0.00018703,2]
[379104976,1755142247547,-460.0,0.00018703,2]
[379104977,1755142247555,-460.0,0.00018703,2]
[379104979,1755142247564,-692.4,0.00018703,2]
[379104981,1755142247572,-460.0,0.00018703,2]
[379104983,1755142247580,-460.0,0.00018703,2]
[379104986,1755142247589,-460.0,0.00018703,2]
[379104988,1755142247597,-4954.15,0.00018703,2]
[379104989,1755142247604,-1051.0,0.00018703,2]
[379104992,1755142247614,-460.0,0.00018703,2]
[379104994,1755142247622,-460.0,0.00018703,2]
[379104996,1755142247630,-564.24,0.00018703,2]
[379104997,1755142247638,-460.0,0.00018703,2]
[379104999,1755142247645,-616.01,0.00018703,2]
[379105001,1755142247653,-631.85,0.00018703,2]
[379105003,1755142247661,-460.0,0.00018703,2]
[379105005,1755142247669,-579.86,0.00018703,2]
[379105007,1755142247676,-962.89,0.00018703,2]
[379105009,1755142247684,-6435.2,0.00018703,2]
[379105011,1755142247691,-460.0,0.00018703,2]
[379105013,1755142247697,-460.0,0.00018703,2]
[379105015,1755142247706,-521.1,0.00018703,2]
[379105017,1755142247715,-460.0,0.00018703,2]
[379105019,1755142247723,-419.64523845,0.00018703,2]
[379105068,1755142248159,-253.56314462,0.0001823,2]
[379105070,1755142248169,-1094.04,0.00018428,2]
[379105072,1755142248178,-617.66,0.00018428,2]
[379105074,1755142248188,-151.0,0.00018433,2]
[379105076,1755142248197,-151.0,0.00018433,2]
[379105078,1755142248207,-151.0,0.00018435,2]
[379105080,1755142248217,-260.21027,0.00018437,2]
[379105082,1755142248227,-1094.04,0.00018702,2]
[379105084,1755142248237,-617.66,0.00018702,2]
[379105086,1755142248247,-1213.47476155,0.00018703,2]
[379105088,1755142248256,-842.26,0.00018703,2]
[379105089,1755142248265,-940.75,0.00018703,2]
[379105092,1755142248275,-554.69,0.00018703,2]
[379105094,1755142248285,-460.0,0.00018703,2]
[379105096,1755142248294,-460.61223397,0.00018703,2]
[379105097,1755142248303,-3966.13,0.00018703,2]
[379105099,1755142248313,-460.0,0.00018703,2]
[379105102,1755142248323,-863.96,0.00018703,2]
[379105103,1755142248332,-460.0,0.00018703,2]
[379105106,1755142248341,-460.0,0.00018703,2]
[379105108,1755142248351,-2400.62,0.00018703,2]
[379105110,1755142248360,-460.0,0.00018703,2]
[379105112,1755142248370,-460.0,0.00018703,2]
[379105114,1755142248380,-460.0,0.00018703,2]
[379105116,1755142248391,-6553.14,0.00018703,2]
[379105118,1755142248402,-460.0,0.00018703,2]
[379105120,1755142248412,-460.0,0.00018703,2]
[379105122,1755142248423,-460.0,0.00018703,2]
[379105124,1755142248433,-914.81,0.00018703,2]
[379105126,1755142248442,-460.0,0.00018703,2]
[379105128,1755142248451,-460.0,0.00018703,2]
[379105130,1755142248460,-965.37,0.00018703,2]
[379105132,1755142248470,-460.0,0.00018703,2]
[379105134,1755142248479,-1225.04,0.00018703,2]
[379105136,1755142248488,-367.64889236,0.00018703,2]
[379105138,1755142248498,-460.0,0.00018703,2]
[379105140,1755142248507,-460.0,0.00018703,2]
[379105142,1755142248516,-876.0,0.00018703,2]
[379105144,1755142248526,-460.0,0.00018703,2]
[379105146,1755142248535,-935.78,0.00018703,2]
[379105148,1755142248544,-460.0,0.00018703,2]
[379105150,1755142248553,-460.0,0.00018703,2]
[379105152,1755142248562,-460.0,0.00018703,2]
[379105154,1755142248571,-442.12348314,0.00018703,2]
[379105156,1755142248582,-460.0,0.00018703,2]
[379105158,1755142248591,-460.0,0.00018703,2]
[379105160,1755142248600,-460.0,0.00018703,2]
[379105162,1755142248609,-595.84,0.00018703,2]
[379105164,1755142248619,-861.12,0.00018703,2]
[379105166,1755142248628,-460.0,0.00018703,2]
[379105168,1755142248639,-2930.75,0.00018703,2]
[379105170,1755142248648,-1248.78,0.00018703,2]
[379105172,1755142248658,-534.73,0.00018703,2]
[379105175,1755142248667,-460.0,0.00018703,2]
[379105176,1755142248676,-1319.8,0.00018703,2]
[379105179,1755142248685,-521.06,0.00018703,2]
[379105181,1755142248694,-460.0,0.00018703,2]
[379105183,1755142248704,-460.0,0.00018703,2]
[379105185,1755142248713,-1547.5,0.00018703,2]
[379105187,1755142248722,-460.0,0.00018703,2]
[379105189,1755142248731,-460.0,0.00018703,2]
[379105191,1755142248740,-460.0,0.00018703,2]
[379105193,1755142248750,-1081.57,0.00018703,2]
[379105195,1755142248759,-460.0,0.00018703,2]
[379105197,1755142248772,-460.0,0.00018704,2]
[379105199,1755142248782,-462.09648985,0.00018704,2]
[379105201,1755142248791,-460.0,0.00018704,2]
[379105203,1755142248800,-460.0,0.00018704,2]
[379105205,1755142248811,-460.0,0.00018704,2]
[379105207,1755142248821,-460.0,0.00018704,2]
[379105209,1755142248830,-460.0,0.00018704,2]
[379105211,1755142248840,-460.0,0.00018704,2]
[379105219,1755142248896,-460.0,0.00018704,2]
[379105221,1755142248906,-460.0,0.00018704,2]
[379105223,1755142248914,-460.0,0.00018704,2]
[379105225,1755142248920,-462.49797106,0.00018704,2]
[379105227,1755142248929,-460.0,0.00018704,2]
[379105229,1755142248938,-460.0,0.00018704,2]
[379105231,1755142248947,-460.0,0.00018704,2]
[379105233,1755142248956,-460.0,0.00018704,2]
[379105235,1755142248966,-460.0,0.00018704,2]
[379105237,1755142248975,-463.12070366,0.00018704,2]
[379105239,1755142248984,-470.04,0.00018704,2]
[379105241,1755142248993,-460.0,0.00018704,2]
[379105243,1755142249002,-460.0,0.00018704,2]
[379105245,1755142249010,-460.0,0.00018704,2]
[379105247,1755142249019,-463.57747149,0.00018704,2]
[379105249,1755142249029,-471.70196279,0.00018704,2]
[379105251,1755142249038,-460.0,0.00018704,2]
[379105253,1755142249047,-462.29306723,0.00018704,2]
[379105254,1755142249056,-464.22572101,0.00018704,2]
[379105256,1755142249066,-540.0,0.00018704,2]
[379105258,1755142249075,-460.0,0.00018704,2]
[379105260,1755142249084,-460.0,0.00018704,2]
[379105262,1755142249093,-460.0,0.00018704,2]
[379105264,1755142249102,-460.0,0.00018704,2]
[379105266,1755142249111,-460.0,0.00018704,2]
[379105268,1755142249121,-461.26679319,0.00018704,2]
[379105270,1755142249131,-460.0,0.00018704,2]
[379105272,1755142249140,-460.0,0.00018704,2]
[379105274,1755142249150,-460.0,0.00018704,2]
[379105276,1755142249159,-460.0,0.00018704,2]
[379105278,1755142249169,-511.55954755,0.00018704,2]
[379105280,1755142249179,-461.87823095,0.00018704,2]
[379105282,1755142249188,-460.0,0.00018704,2]
[379105284,1755142249197,-464.400139,0.00018704,2]
[379105286,1755142249207,-679.79,0.00018704,2]
[379105288,1755142249216,-460.0,0.00018704,2]
[379105289,1755142249226,-460.0,0.00018704,2]
[379105291,1755142249235,-460.0,0.00018704,2]
[379105293,1755142249244,-468.07185896,0.00018704,2]
[379105295,1755142249255,-460.0,0.00018704,2]
[379105297,1755142249265,-460.0,0.00018704,2]
[379105299,1755142249274,-460.0,0.00018704,2]
[379105301,1755142249284,-460.0,0.00018704,2]
[379105303,1755142249293,-460.0,0.00018704,2]
[379105305,1755142249302,-460.0,0.00018704,2]
[379105307,1755142249312,-460.0,0.00018704,2]
[379105309,1755142249321,-460.0,0.00018704,2]
[379105311,1755142249331,-3828.36,0.00018704,2]
[379105313,1755142249340,-460.66256802,0.00018704,2]
[379105315,1755142249350,-460.0,0.00018704,2]
[379105316,1755142249361,-168.31664871,0.00018704,2]
[379105318,1755142249370,-460.0,0.00018704,2]
[379105320,1755142249379,-460.0,0.00018704,2]
[379105322,1755142249388,-460.0,0.00018704,2]
[379105324,1755142249398,-460.0,0.00018704,2]
[379105326,1755142249407,-1322.96,0.00018704,2]
[379105328,1755142249416,-460.0,0.00018704,2]
[379105330,1755142249425,-461.87573943,0.00018704,2]
[379105332,1755142249434,-287.46142335,0.00018704,2]
[379105334,1755142249443,-460.0,0.00018704,2]
[379105336,1755142249452,-460.0,0.00018704,2]
[379105338,1755142249462,-478.02955017,0.00018704,2]
[379105340,1755142249471,-472.78591132,0.00018704,2]
[379105342,1755142249480,-1485.63,0.00018704,2]
[379105344,1755142249489,-460.0,0.00018704,2]
[379105346,1755142249501,-462.34793207,0.00018704,2]
[379105348,1755142249517,-460.0,0.00018704,2]
[379105350,1755142249526,-2456.76,0.00018704,2]
[379105352,1755142249536,-460.0,0.00018704,2]
[379105354,1755142249545,-969.24,0.00018704,2]
[379105356,1755142249555,-460.0,0.00018704,2]
[379105358,1755142249564,-461.77893818,0.00018704,2]
[379105360,1755142249573,-460.0,0.00018704,2]
[379105362,1755142249583,-460.0,0.00018704,2]
[379105363,1755142249592,-460.0,0.00018704,2]
[379105365,1755142249601,-460.0,0.00018704,2]
[379105367,1755142249611,-460.0,0.00018704,2]
[379105369,1755142249620,-1082.14,0.00018704,2]
[379105371,1755142249630,-460.0,0.00018704,2]
[379105373,1755142249640,-583.74,0.00018704,2]
[379105375,1755142249649,-103.55659585,0.00018704,2]
[379105377,1755142250001,-460.0,0.00018433,2]
[379105378,1755142250011,-1202.62340415,0.00018704,2]
[379105379,1755142250020,-460.0,0.00018704,2]
[379105380,1755142250029,-773.4,0.00018704,2]
[379105381,1755142250038,-460.0,0.00018704,2]
[379105382,1755142250047,-4135.42055024,0.00018704,2]
[379105405,1755142254259,5000.0,0.0001811,2]
[379105406,1755142272970,5000.0,0.0001811,2]
[379105413,1755142289803,5000.0,0.0001811,2]
[379105415,1755142306577,5000.0,0.0001811,2]
[379105418,1755142322754,5000.0,0.0001811,2]
[379105419,1755142338257,5000.0,0.0001811,2]
[379105420,1755142355006,5000.0,0.0001811,2]
[379105421,1755142384887,5000.0,0.0001811,2]
[379105422,1755142402536,5000.0,0.0001811,2]
[379105423,1755142418027,5000.0,0.0001811,2]
[379105424,1755142435377,5000.0,0.0001811,2]
[379105425,1755142451585,5000.0,0.0001811,2]
[379105426,1755142468369,5000.0,0.0001811,2]
[379105427,1755142485342,5000.0,0.0001811,2]
[379105428,1755142501782,680.0,0.00026,120]
[379105429,1755142502894,2781.45039997,0.0001811,2]
[379105430,1755142526601,243.1338421,0.0001743,2]
[379105431,1755142595479,5000.0,0.0001811,2]
[379105432,1755142612290,5000.0,0.0001811,2]
[379105435,1755142629035,5000.0,0.0001811,2]
[379105436,1755142659126,4426.90235773,0.0001811,2]
[379105437,1755142667412,1500.0,0.00018435,7]
[379105438,1755142667922,1500.0,0.00018435,7]
[379105439,1755142668410,1484.055374,0.00018435,7]
[379105441,1755143036120,20119.5590514,0.00017376,2]
[379105447,1755143219192,807.07719008,0.000173,30]
[379105448,1755143240163,1266.0,0.000181,2]
[379105451,1755143352509,513.996186,0.00013699,2]
[379105478,1755143432126,-198.1175611,0.00018129,2]
[379105480,1755143432136,-608.70801732,0.000182,2]
[379105482,1755143432145,-528.31177792,0.00018227,2]
[379105622,1755143438338,-655.38426715,0.00018227,2]
[379105623,1755143438348,-300.0,0.00018325,2]
[379105624,1755143438357,-1200.0,0.00018325,2]
[379105625,1755143438367,-460.0,0.00018326,2]
[379105626,1755143438376,-460.0,0.00018326,2]
[379105627,1755143438385,-460.0,0.00018326,2]
[379105628,1755143438394,-460.0,0.00018326,2]
[379105629,1755143438404,-460.0,0.00018326,2]
[379105630,1755143438413,-460.0,0.00018326,2]
[379105631,1755143438422,-460.8312214,0.00018326,2]
[379105632,1755143438432,-460.0,0.00018326,2]
[379105633,1755143438442,-558.3046011,0.00018326,2]
[379105634,1755143438451,-460.0,0.00018326,2]
[379105635,1755143438460,-460.0,0.00018326,2]
[379105636,1755143438470,-460.0,0.00018326,2]
[379105637,1755143438479,-460.0,0.00018326,2]
[379105638,1755143438488,-460.0,0.00018326,2]
[379105639,1755143438497,-460.0,0.00018326,2]
[379105640,1755143438507,-460.0,0.00018326,2]
[379105641,1755143438516,-460.0,0.00018326,2]
[379105642,1755143438526,-460.0,0.00018326,2]
[379105643,1755143438535,-460.0,0.00018326,2]
[379105644,1755143438545,-460.0,0.00018326,2]
[379105645,1755143438554,-460.0,0.00018326,2]
[379105646,1755143438563,-460.0,0.00018326,2]
[379105647,1755143438572,-460.0,0.00018326,2]
[379105648,1755143438581,-460.0,0.00018326,2]
[379105649,1755143438591,-460.0,0.00018326,2]
[379105650,1755143438600,-460.0,0.00018326,2]
[379105651,1755143438609,-460.0,0.00018326,2]
[379105652,1755143438618,-460.0,0.00018326,2]
[379105653,1755143438628,-460.0,0.00018326,2]
[379105654,1755143438637,-460.0,0.00018326,2]
[379105655,1755143438646,-460.0,0.00018326,2]
[379105656,1755143438655,-523.64,0.00018326,2]
[379105657,1755143438665,-460.0,0.00018326,2]
[379105658,1755143438674,-460.0,0.00018326,2]
[379105659,1755143438683,-460.0,0.00018326,2]
[379105660,1755143438693,-460.0,0.00018326,2]
[379105661,1755143438702,-764.04,0.00018326,2]
[379105662,1755143438711,-486.06,0.00018326,2]
[379105663,1755143438720,-460.0,0.00018326,2]
[379105664,1755143438729,-1041.09,0.00018326,2]
[379105665,1755143438744,-460.0,0.00018326,2]
[379105666,1755143438755,-460.0,0.00018326,2]
[379105667,1755143438764,-460.0,0.00018326,2]
[379105668,1755143438774,-2811.4,0.00018326,2]
[379105669,1755143438783,-460.0,0.00018326,2]
[379105670,1755143438792,-740.94,0.00018326,2]
[379105671,1755143438802,-460.0,0.00018326,2]
[379105672,1755143438811,-460.0,0.00018326,2]
[379105673,1755143438821,-579.18681434,0.00018326,2]
[379105674,1755143438831,-460.0,0.00018326,2]
[379105675,1755143438841,-460.0,0.00018326,2]
[379105676,1755143438850,-461.83415373,0.00018326,2]
[379105677,1755143438859,-460.0,0.00018326,2]
[379105678,1755143438869,-460.0,0.00018326,2]
[379105679,1755143438878,-664.33,0.00018327,2]
[379105680,1755143438888,-460.0,0.00018327,2]
[379105681,1755143438897,-460.0,0.00018327,2]
[379105682,1755143438907,-460.0,0.00018327,2]
[379105683,1755143438916,-460.0,0.00018327,2]
[379105684,1755143438926,-193.12740943,0.00018327,2]
[379105685,1755143438936,-460.0,0.00018327,2]
[379105686,1755143438945,-1182.39,0.00018327,2]
[379105687,1755143438955,-2040.06,0.00018327,2]
[379105688,1755143438964,-1057.18,0.00018327,2]
[379105689,1755143438973,-274.618992,0.00018327,2]
[379105690,1755143438983,-460.0,0.00018327,2]
[379105691,1755143438992,-460.0,0.00018327,2]
[379105692,1755143439002,-461.52367807,0.00018327,2]
[379105693,1755143439012,-460.0,0.00018327,2]
[379105694,1755143439021,-729.81,0.00018327,2]
[379105695,1755143439032,-339.55577123,0.00018327,2]
[379105696,1755143439041,-636.69,0.00018327,2]
[379105697,1755143439051,-460.0,0.00018327,2]
[379105698,1755143439060,-5485.07,0.00018327,2]
[379105699,1755143439069,-500.0,0.00018327,2]
[379105700,1755143439080,-5898.94,0.00018327,2]
[379105701,1755143439089,-872.14,0.00018327,2]
[379105702,1755143439098,-460.0,0.00018327,2]
[379105703,1755143439109,-460.0,0.00018327,2]
[379105704,1755143439128,-460.0,0.00018327,2]
[379105705,1755143439138,-460.0,0.00018327,2]
[379105706,1755143439147,-460.0,0.00018327,2]
[379105707,1755143439157,-460.0,0.00018327,2]
[379105708,1755143439168,-2425.83,0.00018327,2]
[379105709,1755143439177,-460.0,0.00018327,2]
[379105710,1755143439187,-460.0,0.00018327,2]
[379105711,1755143439198,-603.01,0.00018327,2]
[379105712,1755143439207,-1123.1,0.00018327,2]
[379105713,1755143439217,-622.76,0.00018327,2]
[379105714,1755143439227,-6026.21,0.00018327,2]
[379105715,1755143439236,-151.46703016,0.00018327,2]
[379105716,1755143439245,-573.51,0.00018327,2]
[379105717,1755143439255,-460.0,0.00018327,2]
[379105718,1755143439264,-1053.56,0.00018327,2]
[379105719,1755143439273,-484.55818845,0.00018327,2]
[379105720,1755143439282,-460.0,0.00018327,2]
[379105721,1755143439292,-1090.1,0.00018327,2]
[379105722,1755143439301,-460.0,0.00018327,2]
[379105723,1755143439310,-1695.43,0.00018327,2]
[379105724,1755143439320,-4415.5,0.00018327,2]
[379105725,1755143439329,-460.0,0.00018327,2]
[379105726,1755143439339,-460.0,0.00018327,2]
[379105727,1755143439348,-830.3,0.00018327,2]
[379105728,1755143439358,-460.0,0.00018327,2]
[379105729,1755143439367,-934.47,0.00018327,2]
[379105730,1755143439376,-738.48,0.00018327,2]
[379105731,1755143439385,-460.0,0.00018327,2]
[379105732,1755143439394,-460.0,0.00018327,2]
[379105733,1755143439404,-603.68,0.00018327,2]
[379105734,1755143439413,-460.0,0.00018327,2]
[379105735,1755143439423,-472.901425,0.00018327,2]
[379105736,1755143439432,-460.0,0.00018327,2]
[379105737,1755143439442,-1248.55,0.00018327,2]
[379105739,1755143439451,-1456.02,0.00018327,2]
[379105741,1755143439460,-460.0,0.00018327,2]
[379105742,1755143439469,-1665.69,0.00018327,2]
[379105743,1755143439478,-470.49,0.00018327,2]
[379105744,1755143439487,-460.0,0.00018327,2]
[379105745,1755143439497,-460.0,0.00018327,2]
[379105746,1755143439505,-898.12,0.00018327,2]
[379105747,1755143439514,-460.0,0.00018327,2]
[379105748,1755143439524,-460.0,0.00018327,2]
[379105749,1755143439533,-3106.71,0.00018327,2]
[379105750,1755143439543,-460.0,0.00018327,2]
[379105751,1755143439552,-460.0,0.00018327,2]
[379105752,1755143439562,-460.0,0.00018327,2]
[379105753,1755143439572,-460.0,0.00018327,2]
[379105754,1755143439581,-460.0,0.00018327,2]
[379105755,1755143439591,-155.12431507,0.00018327,2]
[379105756,1755143439600,-460.0,0.00018327,2]
[379105758,1755143439609,-460.0,0.00018327,2]
[379105760,1755143439619,-460.0,0.00018327,2]
[379105762,1755143439628,-460.0,0.00018327,2]
[379105764,1755143439637,-460.0,0.00018327,2]
[379105766,1755143439646,-460.0,0.00018327,2]
[379105768,1755143439655,-460.0,0.00018328,2]
[379105770,1755143439665,-460.0,0.00018328,2]
[379105772,1755143439673,-460.0,0.00018328,2]
[379105774,1755143439682,-461.67387198,0.00018328,2]
[379105776,1755143439691,-502.52578215,0.00018328,2]
[379105778,1755143439700,-460.0,0.00018328,2]
[379105780,1755143439709,-460.0,0.00018328,2]
[379105782,1755143439718,-460.0,0.00018328,2]
[379105784,1755143439727,-460.0,0.00018328,2]
[379105786,1755143439736,-460.0,0.00018328,2]
[379105788,1755143439745,-460.0,0.00018328,2]
[379105790,1755143439754,-460.0,0.00018328,2]
[379105792,1755143439764,-907.11,0.00018328,2]
[379105794,1755143439773,-1418.39,0.00018328,2]
[379105796,1755143439782,-460.0,0.00018328,2]
[379105798,1755143439791,-460.0,0.00018328,2]
[379105800,1755143439801,-460.0,0.00018328,2]
[379105802,1755143439810,-1326.11,0.00018328,2]
[379105804,1755143439819,-500.0,0.00018328,2]
[379105806,1755143439828,-500.0,0.00018328,2]
[379105808,1755143439837,-500.0,0.00018328,2]
[379105810,1755143439847,-500.0,0.00018328,2]
[379105812,1755143439856,-1250.56,0.00018328,2]
[379105814,1755143439865,-460.0,0.00018328,2]
[379105816,1755143439874,-588.98,0.00018328,2]
[379105818,1755143439883,-569.9,0.00018328,2]
[379105820,1755143439892,-15305.96,0.00018328,2]
[379105822,1755143439901,-1488.18,0.00018328,2]
[379105824,1755143439910,-460.0,0.00018328,2]
[379105826,1755143439919,-1554.78,0.00018328,2]
[379105828,1755143439929,-1631.73,0.00018328,2]
[379105830,1755143439938,-735.35,0.00018328,2]
[379105832,1755143439948,-1002.08,0.00018328,2]
[379105834,1755143439957,-460.0,0.00018328,2]
[379105836,1755143439967,-13092.26,0.00018328,2]
[379105838,1755143439976,-500.0,0.00018328,2]
[379105840,1755143439985,-21748.34,0.00018328,2]
[379105842,1755143439994,-460.0,0.00018328,2]
[379105844,1755143440003,-578.52,0.00018328,2]
[379105846,1755143440012,-3848.37,0.00018328,2]
[379105848,1755143440022,-535.13,0.00018328,2]
[379105850,1755143440031,-1387.96,0.00018328,2]
[379105852,1755143440040,-460.0,0.00018328,2]
[379105854,1755143440049,-460.0,0.00018328,2]
[379105856,1755143440058,-460.0,0.00018328,2]
[379105858,1755143440067,-87974.83610145,0.00018329,2]
[379105860,1755143440076,-500.0,0.00018373,2]
[379105862,1755143440086,-500.0,0.00018373,2]
[379105864,1755143440095,-500.0,0.00018373,2]
[379105866,1755143440104,-151.46703016,0.00018419,2]
[379105868,1755143440115,-500.0,0.00018427,2]
[379105870,1755143440125,-500.0,0.00018427,2]
[379105872,1755143440134,-500.0,0.00018427,2]